bitfinex-derivatives/quotes_ETHF0:USTF0_20251119
["timestamp","ask_amount","ask_price","bid_price","bid_amount"]
[1763582128420,3.893,2889.0,2888.9,0.0051904]
[1763582128724,3.893,2889.0,2888.9,0.00904454]
[1763582128725,7.1008,2889.0,2888.9,0.00904454]
[1763582129324,3.6965,2889.0,2888.9,0.00904454]
[1763582129517,0.3005,2889.0,2888.9,0.00904454]
[1763582129719,3.6955,2889.0,2888.9,0.00904454]
[1763582130030,0.00262387,2889.2,2889.1,0.325]
[1763582130429,0.3005,2889.0,2888.9,3.21684454]
[1763582130729,0.3005,2889.0,2888.9,0.00904454]
[1763582131316,0.00262387,2889.2,2889.1,0.325]
[1763582131619,0.00262387,2889.2,2889.1,3.5328]
[1763582132727,0.30312387,2889.2,2888.9,0.00904454]
[1763582134924,0.00262387,2889.2,2889.1,0.323]
[1763582137123,0.0051904,2889.4,2889.3,0.323]
[1763582137434,0.2999904,2889.4,2889.0,3.2078]
[1763582138129,0.30373614,2889.4,2889.0,3.2078]
[1763582138628,1.59073614,2889.4,2889.0,3.2078]
[1763582138829,1.29593614,2889.4,2889.0,3.2078]
[1763582139726,0.00893614,2889.4,2889.3,3.5308]
[1763582144340,0.73514,2890.3,2889.3,4.7688358]
[1763582144531,0.73514,2890.3,2889.8,3.2078]
[1763582144938,0.73514,2890.3,2889.4,3.5308]
[1763582144939,0.1753,2890.0,2889.4,3.5308]
[1763582145426,0.18308835,2890.0,2889.4,3.5308]
[1763582145623,0.18308835,2890.0,2889.6,0.323]
[1763582145821,1.90278835,2890.0,2889.9,0.323]
[1763582146320,0.00778835,2890.0,2889.9,0.323]
[1763582146526,0.56101,2890.9,2890.0,0.1814]
[1763582146732,3.39,2890.6,2890.5,0.323]
[1763582146931,0.56101,2890.9,2890.5,0.323]
[1763582147126,2.57801,2890.9,2890.7,3.2078]
[1763582147327,4.68559379,2891.4,2890.7,3.2078]
[1763582147523,0.17852875,2891.0,2890.7,3.2078]
[1763582147725,0.00322875,2891.0,2890.7,3.2078]
[1763582147929,0.00322875,2891.0,2890.9,0.323]
[1763582148525,0.29802875,2891.0,2890.7,3.2078]
[1763582148929,0.00322875,2891.0,2890.9,0.323]
[1763582149929,0.29802875,2891.0,2890.9,0.323]
[1763582150631,0.00322875,2891.0,2890.9,0.323]
[1763582151630,0.29802875,2891.0,2890.9,0.323]
[1763582151831,0.29802875,2891.0,2890.7,3.2078]
[1763582153025,0.2948,2890.7,2890.6,0.0051904]
[1763582155432,0.00322875,2891.0,2890.7,0.323]
[1763582155630,0.00322875,2891.0,2890.9,3.5308]
[1763582156740,0.29802875,2891.0,2890.6,3.2129904]
[1763582156932,0.47332875,2891.0,2890.6,3.2129904]
[1763582157534,0.85585,2890.7,2890.6,3.2129904]
[1763582158236,0.85585,2890.7,2890.6,3.5359904]
[1763582158437,1.267,2890.8,2890.7,0.323]
[1763582158632,3.386,2890.8,2890.7,0.323]
[1763582158832,0.2948,2890.7,2890.6,0.0051904]
[1763582159237,0.2948,2890.7,2890.6,3.2129904]
[1763582160339,0.00322875,2891.0,2890.9,0.323]
[1763582160534,0.56085,2891.7,2891.0,0.4932]
[1763582160841,0.2948,2891.1,2890.9,3.2078]
[1763582161235,3.2078,2891.9,2891.0,0.4932]
[1763582161435,1.955,2891.8,2891.4,3.2078]
[1763582161736,0.00328347,2891.8,2891.4,3.21184809]
[1763582161936,0.2948,2891.5,2891.4,3.21184809]
[1763582162132,0.00328347,2891.8,2891.4,3.48774809]
[1763582162635,0.2682,2891.5,2891.4,0.27994809]
[1763582162838,0.2682,2891.5,2891.4,0.00404809]
[1763582163038,3.6427,2891.5,2890.8,3.2078]
[1763582163240,0.2682,2890.7,2890.6,0.0051904]
[1763582163539,0.1667,2891.0,2890.6,0.2810904]
[1763582163742,1.6782,2890.9,2890.6,0.0051904]
[1763582164135,0.2682,2890.7,2890.6,0.00959129]
[1763582165440,0.56101,2890.9,2890.6,0.28549129]
[1763582165637,0.2682,2890.7,2890.6,0.28549129]
[1763582165939,0.2682,2890.7,2890.6,0.00959129]
[1763582166142,0.2682,2890.7,2890.6,0.28549129]
[1763582166642,0.2682,2890.7,2890.6,0.00959129]
[1763582166843,0.1667,2891.0,2890.6,0.28549129]
[1763582167143,3.5527,2891.0,2890.6,0.28549129]
[1763582167342,3.386,2890.9,2890.6,0.28549129]
[1763582168140,3.386,2890.9,2890.8,0.2759]
[1763582168343,0.56099,2891.0,2890.8,0.2759]
[1763582168544,0.2682,2890.9,2890.8,0.2759]
[1763582168739,0.1667,2891.5,2890.8,0.2759]
[1763582168740,0.1753,2892.0,2891.6,0.2435]
[1763582169039,0.2682,2891.4,2891.3,3.2078]
[1763582170045,0.1667,2891.5,2891.3,3.2078]
[1763582170344,0.00328347,2891.8,2891.7,0.2435]
[1763582170544,0.00328347,2891.8,2891.7,3.4513]
[1763582172546,0.4349,2891.5,2891.4,3.2078]
[1763582173243,0.4349,2891.5,2891.1,3.2078]
[1763582173840,0.1667,2891.5,2891.1,3.2078]
[1763582174046,0.1667,2891.5,2891.4,3.4513]
[1763582174245,0.1667,2891.5,2891.4,0.2435]
[1763582174447,0.00328347,2891.8,2891.4,3.4513]
[1763582175351,0.00328347,2891.8,2891.7,3.4513]
[1763582179960,0.27148347,2891.8,2891.7,3.2078]
[1763582181056,0.00328347,2891.8,2891.7,3.4513]
[1763582181260,0.00328347,2891.8,2891.7,3.2078]
[1763582181557,0.00328347,2891.8,2891.4,3.2078]
[1763582182351,0.27148347,2891.8,2891.7,3.2078]
[1763582185765,0.4255,2891.5,2890.8,6.30690648]
[1763582186058,0.4255,2891.5,2890.8,3.4106]
[1763582186059,0.1657,2891.0,2890.8,3.4106]
[1763582186264,0.1657,2891.0,2890.9,0.2028]
[1763582186765,1.506,2891.1,2890.2,4.48263292]
[1763582186766,0.1657,2891.5,2891.1,3.2078]
[1763582186969,3.5527,2891.5,2890.8,3.2078]
[1763582187762,0.1657,2891.5,2890.8,3.2078]
[1763582188261,1.904,2891.5,2891.4,0.2028]
[1763582188460,2.0697,2891.5,2891.4,0.2028]
[1763582189060,2.0697,2891.5,2890.7,3.86281162]
[1763582189061,2.0697,2891.5,2890.9,3.2078]
[1763582189263,0.1657,2891.0,2890.9,3.2078]
[1763582189462,0.1657,2891.0,2890.6,1.24923388]
[1763582189463,0.4255,2891.0,2890.6,3.21739129]
[1763582189765,2.0345,2891.0,2890.6,3.21739129]
[1763582189965,0.4255,2891.0,2890.6,3.21739129]
[1763582190170,2.1405,2891.0,2890.6,3.21739129]
[1763582190973,0.4255,2891.0,2890.6,3.21739129]
[1763582191173,3.8115,2891.0,2890.6,3.21739129]
[1763582191869,0.4255,2891.0,2890.6,3.21739129]
[1763582192075,0.2485,2890.7,2890.6,3.21739129]
[1763582192372,0.2485,2890.7,2890.6,0.00959129]
[1763582192569,0.2485,2890.7,2889.8,2.26502738]
[1763582192570,0.1482,2890.0,2889.8,1.23964259]
[1763582192766,0.2485,2889.4,2889.3,3.2078]
[1763582192966,0.2485,2889.4,2888.9,3.2078]
[1763582193169,0.1482,2889.5,2888.7,1.23964259]
[1763582193170,0.3967,2889.0,2888.7,1.23964259]
[1763582193369,1.7725,2888.9,2888.4,3.2078]
[1763582193568,0.25207686,2888.9,2888.4,3.21634579]
[1763582193876,0.65926726,2888.9,2888.4,3.21634579]
[1763582194976,0.00876726,2888.9,2888.8,0.1873]
[1763582196577,0.2485,2888.8,2888.4,3.21634579]
[1763582197080,0.00876726,2888.9,2888.4,3.21634579]
[1763582197273,0.491,2888.8,2888.4,3.21634579]
[1763582197473,2.70976726,2888.9,2888.4,3.21634579]
[1763582198783,0.00876726,2888.9,2888.4,3.21634579]
[1763582199474,0.00876726,2888.9,2888.8,0.1873]
[1763582200881,0.00876726,2888.9,2888.7,3.2078]
[1763582201078,0.25726726,2888.9,2888.4,0.00854579]
[1763582201384,0.00876726,2888.9,2888.8,0.1873]
[1763582201675,0.00876726,2888.9,2888.4,0.00854579]
[1763582201880,0.00876726,2888.9,2888.8,0.1873]
[1763582202878,0.70939,2890.0,2889.4,0.1786]
[1763582203077,0.154,2889.6,2889.4,0.1786]
[1763582203787,0.0042134,2889.6,2889.4,0.1786]
[1763582204484,0.1482,2889.5,2889.2,3.2078]
[1763582204779,0.1482,2889.5,2889.4,0.1786]
[1763582205486,0.1482,2889.5,2889.2,3.2078]
[1763582205783,0.2485,2889.3,2889.2,3.2078]
[1763582205989,0.2485,2889.3,2888.9,3.2078]
[1763582206372,0.1482,2889.5,2888.9,3.2078]
[1763582206578,0.3092,2889.5,2888.9,3.2078]
[1763582206777,0.3092,2889.5,2889.2,3.2078]
[1763582206975,0.2485,2889.3,2889.2,3.2078]
[1763582207175,0.3092,2889.5,2889.2,3.2078]
[1763582207576,0.1482,2889.5,2889.2,3.2078]
[1763582208183,0.0042134,2889.6,2889.5,0.1786]
[1763582208383,0.0042134,2889.6,2889.5,3.3864]
[1763582210678,0.0042134,2889.6,2889.5,0.1786]
[1763582211581,1.34e-05,2889.6,2889.5,0.1786]
[1763582211781,0.032,2890.6,2890.3,3.2078]
[1763582211989,3.353,2890.9,2890.4,0.1744]
[1763582212680,3.35682962,2890.9,2890.4,0.1744]
[1763582212881,0.00382962,2890.9,2890.6,3.2078]
[1763582213184,0.00382962,2890.9,2890.8,0.1744]
[1763582214689,0.00382962,2890.9,2890.6,0.00253654]
[1763582214889,0.00382962,2890.9,2890.8,0.1744]
[1763582218884,2.962e-05,2890.9,2890.8,0.1744]
[1763582222592,2.962e-05,2890.9,2890.8,3.3822]
[1763582222795,0.24392962,2890.9,2890.6,0.00253654]
[1763582224786,0.2439,2890.6,2890.5,3.2078]
[1763582225689,0.2439,2890.6,2890.5,3.21071254]
[1763582226588,0.2439,2890.2,2890.1,0.0051904]
[1763582226787,0.1477,2890.5,2890.1,0.1278904]
[1763582226989,0.2439,2890.2,2890.1,0.0051904]
[1763582227585,0.2439,2890.2,2890.1,0.00811432]
[1763582229687,0.3916,2889.5,2889.0,3.2078]
[1763582230291,0.95289,2889.5,2889.0,3.2078]
[1763582230700,0.2439,2889.1,2889.0,3.216]
[1763582230996,0.2439,2889.1,2889.0,0.0082]
[1763582231388,1.94226,2889.1,2889.0,0.0082]
[1763582231591,0.1477,2889.0,2888.3,3.2078]
[1763582231788,0.2439,2888.4,2888.3,3.2078]
[1763582232196,0.1477,2888.5,2888.3,3.2078]
[1763582232594,0.15050235,2888.5,2888.3,3.21069276]
[1763582233004,0.15050235,2888.5,2888.3,0.00289276]
[1763582233394,0.2439,2888.4,2888.3,0.00289276]
[1763582234293,0.15050235,2888.5,2888.3,0.00289276]
[1763582234895,0.00280235,2888.5,2888.4,0.1309]
[1763582236195,0.15050235,2888.5,2888.3,3.21069276]
[1763582236401,0.608,2889.6,2888.9,0.1309]
[1763582236596,0.1477,2889.0,2888.6,3.2078]
[1763582237195,0.1477,2888.5,2888.3,0.00289276]
[1763582237401,0.1507738,2888.5,2888.3,0.00289276]
[1763582237703,0.0030738,2888.5,2888.4,0.1309]
[1763582237893,0.1507738,2888.5,2888.3,0.00289276]
[1763582238294,0.1507738,2888.5,2888.4,0.1309]
[1763582238889,0.2439,2888.4,2888.3,0.00289276]
[1763582239092,0.2439,2888.4,2888.1,0.0051904]
[1763582239093,0.2439,2888.2,2888.1,0.0051904]
[1763582239390,0.9469,2888.2,2888.1,0.0051904]
[1763582240102,0.9469,2888.2,2888.1,0.00878634]
[1763582240301,0.9469,2888.2,2887.3,3.2078]
[1763582240700,0.1477,2887.5,2886.9,3.2078]
[1763582240894,0.1477,2887.5,2886.6,2.26502738]
[1763582241296,0.3257,2887.5,2886.8,0.0051904]
[1763582242096,2.5327,2887.5,2886.8,0.0051904]
[1763582244104,0.1477,2887.0,2886.8,0.0051904]
[1763582244803,0.2439,2886.9,2886.8,0.0051904]
[1763582245008,0.2439,2886.7,2886.6,0.00361778]
[1763582245306,0.1477,2887.0,2885.0,0.0849]
[1763582245307,0.1477,2886.5,2885.0,0.0849]
[1763582245500,0.56191,2886.3,2885.0,0.0849]
[1763582245701,0.56192,2886.2,2885.0,0.0849]
[1763582245901,0.56192,2886.2,2885.3,0.0051904]
[1763582246100,0.56544726,2886.2,2885.3,0.00799284]
[1763582246296,0.56544726,2886.2,2884.0,0.046]
[1763582246297,0.2458,2885.4,2884.0,0.046]
[1763582246511,0.1531,2885.5,2884.0,0.046]
[1763582246512,0.49,2885.3,2884.1,2.26502738]
[1763582246709,0.49,2885.3,2884.0,0.046]
[1763582246915,0.56209,2885.4,2884.0,0.046]
[1763582247104,0.548,2885.3,2884.2,2.26502738]
[1763582247300,0.00519984,2885.0,2884.5,0.00519984]
[1763582247503,0.15829984,2885.0,2884.5,0.00519984]
[1763582248907,0.00519984,2885.0,2884.5,0.00519984]
[1763582249105,0.15829984,2885.0,2884.5,0.00519984]
[1763582251906,0.00519984,2885.0,2884.9,0.1264]
[1763582253613,0.00352726,2886.2,2884.9,0.1264]
[1763582253614,2.726e-05,2886.2,2886.1,0.1212]
[1763582253808,0.71457,2887.5,2886.1,0.1212]
[1763582254012,0.56169,2887.4,2886.1,0.1212]
[1763582254619,0.56169,2887.4,2885.5,2.67013036]
[1763582254620,2.62933036,2887.4,2885.5,2.67013036]
[1763582254804,0.2405,2886.4,2886.3,0.00519984]
[1763582255009,0.2405,2886.4,2886.3,0.00299022]
[1763582255411,0.00519984,2886.8,2886.7,0.1177]
[1763582256007,0.00447521,2887.0,2886.9,0.1177]
[1763582256707,0.00447521,2887.0,2886.5,0.00519984]
[1763582256902,0.00967505,2887.0,2886.5,0.00519984]
[1763582257715,0.00967505,2887.0,2886.9,0.1125]
[1763582258807,0.00967505,2887.0,2886.5,0.00519984]
[1763582259718,0.00967505,2887.0,2886.9,0.1125]
[1763582261623,0.00967505,2887.0,2886.5,0.00519984]
[1763582262220,0.2405,2886.6,2886.3,0.00299022]
[1763582262420,0.2405,2886.4,2886.3,0.00299022]
[1763582262920,0.2405,2886.4,2885.4,0.0372]
[1763582263424,0.2405,2886.4,2885.6,0.00519984]
[1763582264129,0.2405,2886.4,2885.6,0.00884808]
[1763582264619,0.00967505,2887.0,2886.1,2.62933036]
[1763582265224,0.00967505,2887.0,2886.0,0.56196]
[1763582265413,0.00967505,2887.0,2885.7,1.23964259]
[1763582265620,0.00967505,2887.0,2885.6,2.63817844]
[1763582265927,0.00967505,2887.0,2885.6,4.43985103]
[1763582266119,0.13267505,2887.0,2885.6,3.20020844]
[1763582266422,0.56181,2886.8,2885.6,0.00884808]
[1763582267416,0.71476,2886.6,2885.6,0.00884808]
[1763582267821,0.56189,2886.4,2885.6,0.00884808]
[1763582268122,0.1529,2886.0,2885.6,0.00884808]
[1763582268316,0.1529,2886.6,2885.9,0.1125]
[1763582269212,0.1529,2886.6,2885.6,0.57088808]
[1763582270628,0.1529,2886.6,2885.6,0.00884808]
[1763582270916,0.71475,2886.6,2885.6,0.00884808]
[1763582271320,0.56188,2886.5,2885.6,0.00884808]
[1763582271927,0.1529,2886.0,2885.6,0.00884808]
[1763582272126,0.2405,2885.7,2885.0,15.18191285]
[1763582272730,0.1529,2886.0,2885.0,15.18191285]
[1763582272922,0.1529,2886.0,2885.0,15.74407285]
[1763582273120,0.1529,2886.0,2885.2,0.00519984]
[1763582274918,1.07943293,2886.6,2885.4,0.56206]
[1763582275120,0.1529,2886.6,2885.4,0.56206]
[1763582275317,1.13,2886.5,2885.4,0.56206]
[1763582275929,1.276,2886.5,2885.4,0.56206]
[1763582276229,1.4549,2886.6,2885.6,0.56204]
[1763582277026,0.1529,2886.6,2885.6,0.56204]
[1763582277327,0.71476,2886.6,2885.3,1.23964259]
[1763582277628,0.71476,2886.6,2885.2,2.6345302]
[1763582277629,0.1529,2886.6,2885.8,0.56198]
[1763582277832,0.1529,2886.6,2885.6,1.23964259]
[1763582278029,0.1529,2886.6,2885.4,1.23964259]
[1763582278428,0.1529,2886.6,2885.5,1.23964259]
[1763582279025,0.9199,2886.6,2885.6,1.23964259]
[1763582280331,0.16257505,2887.0,2885.8,1.23964259]
[1763582280531,0.5618,2886.9,2885.8,1.23964259]
[1763582280926,0.16257505,2887.0,2885.7,1.23964259]
[1763582281126,0.56184,2886.7,2885.6,1.23964259]
[1763582281330,0.56184,2886.7,2885.7,1.23964259]
[1763582282126,0.16257505,2887.0,2885.9,1.23964259]
[1763582282334,0.16257505,2887.0,2885.8,0.56199]
[1763582282335,0.16257505,2887.0,2886.0,1.23964259]
[1763582283036,0.16257505,2887.0,2886.1,1.23964259]
[1763582283828,0.16257505,2887.0,2886.2,1.23964259]
[1763582284435,0.16257505,2887.0,2886.4,1.23964259]
[1763582286242,0.00967505,2887.0,2886.9,0.1128]
[1763582287945,0.15067505,2887.0,2886.7,1.24484243]
[1763582288146,0.15067505,2887.0,2886.7,0.00519984]
[1763582288346,0.2421,2886.8,2886.7,0.00519984]
[1763582289849,0.15067505,2887.0,2886.7,0.00519984]
[1763582291951,0.2421,2886.8,2886.7,0.00519984]
[1763582296241,1.07943293,2887.5,2886.9,0.1128]
[1763582296441,0.1529,2887.5,2887.1,1.23964259]
[1763582296646,0.92653293,2888.3,2887.4,0.1128]
[1763582296847,0.1529,2888.5,2887.9,0.1128]
[1763582297151,0.1529,2888.5,2888.0,1.23964259]
[1763582297447,0.1529,2888.5,2888.0,0.00363987]
[1763582297448,0.16237868,2888.5,2888.0,0.00363987]
[1763582298060,0.2421,2888.1,2888.0,0.00363987]
[1763582301454,0.141,2888.0,2887.2,1.23964259]
[1763582301656,0.141,2888.0,2887.2,4.99764259]
[1763582302352,0.141,2887.5,2887.3,3.758]
[1763582302756,0.2421,2887.4,2887.3,3.758]
[1763582303052,0.141,2887.5,2887.2,3.76228464]
[1763582304151,0.141,2887.5,2887.4,0.1164]
[1763582304356,0.141,2887.5,2887.2,3.76228464]
[1763582306154,0.2421,2887.3,2887.2,3.76228464]
[1763582306361,0.2421,2887.3,2887.2,0.00428464]
[1763582308658,0.0631,2885.9,2885.7,1.85946389]
[1763582308852,0.0631,2885.6,2885.0,2.01196389]
[1763582309047,3.55586329,2886.5,2885.0,2.01196389]
[1763582309048,0.0631,2885.1,2885.0,0.1525]
[1763582309249,0.0631,2885.1,2884.0,0.1525]
[1763582309561,0.0631,2884.6,2884.0,0.1525]
[1763582309860,0.00519984,2884.6,2884.0,0.15769984]
[1763582310650,0.00519984,2884.6,2884.5,0.1525]
[1763582311154,0.06829984,2884.6,2884.0,0.16027581]
[1763582312057,0.00519984,2884.6,2884.5,0.1468]
[1763582312457,0.00519984,2884.6,2884.0,0.16027581]
[1763582312458,0.06869984,2884.6,2884.0,0.16027581]
[1763582312657,0.00519984,2884.6,2884.5,0.3965]
[1763582317455,0.07134277,2885.1,2885.0,0.1468]
[1763582317662,0.0687,2884.6,2884.5,0.1468]
[1763582317965,0.00264277,2885.1,2884.5,0.1468]
[1763582318561,0.00784261,2885.1,2884.5,0.1468]
[1763582318859,0.00784261,2885.1,2885.0,0.1468]
[1763582320361,0.07654261,2885.1,2884.5,0.1468]
[1763582321668,0.07654261,2885.1,2885.0,0.1468]
[1763582321867,0.07654261,2885.1,2884.5,0.1468]
[1763582324267,0.07654261,2885.1,2885.0,0.1468]
[1763582325971,0.07654261,2885.1,2884.5,0.1468]
[1763582325972,0.56218,2884.9,2884.5,0.1468]
[1763582326771,0.0687,2884.6,2884.5,0.1468]
[1763582327072,0.56218,2884.9,2884.5,0.1468]
[1763582327467,0.63093,2884.6,2884.5,0.1468]
[1763582327667,0.63093,2884.6,2884.0,0.16027581]
[1763582329472,2.27478636,2884.4,2884.0,0.15457581]
[1763582329677,0.0687,2884.1,2884.0,0.15457581]
[1763582329968,2.27478636,2884.4,2884.0,0.15457581]
[1763582330276,0.0687,2884.1,2884.0,0.00777581]
[1763582331067,0.56233,2884.2,2884.1,0.2497]
[1763582331268,0.0687,2884.1,2884.0,0.15457581]
[1763582331471,0.0687,2883.6,2883.5,0.1525]
[1763582332067,0.0687,2882.2,2882.1,0.06036401]
[1763582332270,2.27478636,2882.5,2881.5,0.1468]
[1763582332462,2.27478636,2882.2,2881.7,0.00519984]
[1763582332662,0.00519984,2882.3,2881.0,0.1468]
[1763582332663,0.0687,2881.6,2881.0,0.1468]
[1763582333271,0.0687,2881.1,2880.0,0.1468]
[1763582333480,2.27478636,2880.7,2880.0,0.1468]
[1763582333673,0.56294,2881.0,2880.0,0.15056226]
[1763582334179,0.0687,2880.2,2880.1,0.00347288]
[1763582334366,0.0687,2880.1,2880.0,0.00023514]
[1763582334567,0.0687,2880.1,2878.8,0.1468]
[1763582334777,0.00303455,2880.2,2878.8,0.1468]
[1763582334778,0.56316,2879.9,2878.8,0.1468]
[1763582335166,0.56319,2879.7,2878.8,0.1468]
[1763582335371,2.27478636,2879.5,2878.8,0.1468]
[1763582335565,2.27478636,2879.5,2878.8,0.15128386]
[1763582336977,2.27782091,2880.2,2878.8,0.15128386]
[1763582337179,0.00303455,2880.2,2880.0,0.1468]
[1763582338377,0.00303455,2880.2,2879.4,0.1468]
[1763582338875,0.00303455,2880.2,2880.0,0.1468]
[1763582339269,0.00303455,2880.2,2879.4,0.1468]
[1763582339469,2.27478636,2879.9,2879.4,0.1468]
[1763582339870,0.00303455,2880.2,2879.4,0.1468]
[1763582340374,0.00303455,2880.2,2878.8,0.15128386]
[1763582340573,0.56316,2879.9,2878.8,0.15128386]
[1763582340976,0.00303455,2880.2,2880.0,0.1468]
[1763582341277,0.00303455,2880.2,2879.4,0.1468]
[1763582343183,0.00303455,2880.2,2880.0,0.1534]
[1763582343680,0.00303455,2880.2,2879.4,0.1468]
[1763582344981,0.00303455,2880.2,2880.0,0.1534]
[1763582345584,0.00303455,2880.2,2880.1,0.253]
[1763582345882,0.00519984,2880.8,2880.6,0.1534]
[1763582346975,0.00845023,2880.8,2880.6,0.1534]
[1763582347470,3.20131929,2882.6,2880.6,0.1534]
[1763582347471,0.56275,2882.0,2880.7,0.253]
[1763582347670,0.56276,2881.9,2880.7,0.253]
[1763582348379,0.00520933,2881.6,2880.7,0.253]
[1763582348577,0.00520933,2881.6,2881.2,0.1534]
[1763582348782,0.00520933,2881.6,2881.5,0.253]
[1763582349080,0.00520933,2881.6,2881.5,0.25639641]
[1763582350386,0.00520933,2881.6,2881.5,0.00339641]
[1763582350586,0.00520933,2881.6,2881.5,0.25639641]
[1763582351781,0.65562933,2881.6,2881.5,0.00339641]
[1763582353686,0.56286,2881.4,2880.6,0.1534]
[1763582354694,0.56286,2881.4,2880.6,0.1569514]
[1763582354891,0.56286,2881.4,2881.3,0.253]
[1763582355093,0.56286,2881.4,2881.2,0.1534]
[1763582355493,0.00520933,2881.6,2881.2,0.1534]
[1763582356289,0.0876,2881.3,2880.6,0.1569514]
[1763582356795,0.00520933,2881.6,2881.2,0.1534]
[1763582356998,0.0876,2881.3,2880.6,0.1569514]
[1763582357193,0.00520933,2881.6,2880.6,0.1569514]
[1763582357500,0.56284,2881.5,2880.6,0.1569514]
[1763582358797,0.56284,2881.5,2881.2,0.1534]
[1763582359000,0.00520933,2881.6,2881.5,0.253]
[1763582359190,0.00520933,2881.6,2881.5,0.4064]
[1763582362394,0.00520933,2881.6,2881.2,0.1534]
[1763582362603,0.00520933,2881.6,2881.5,0.1534]
[1763582363305,0.00520933,2881.6,2881.5,0.4064]
[1763582363803,9.33e-06,2881.6,2881.5,0.4064]
[1763582370005,0.56263,2882.6,2882.5,0.1492]
[1763582370202,1.44404007,2882.6,2882.0,0.1492]
[1763582370407,0.78561007,2882.5,2882.0,0.1492]
[1763582370607,0.56268,2882.3,2882.0,0.1492]
[1763582371010,0.56643131,2882.3,2882.0,0.1492]
[1763582371205,0.66223131,2882.3,2882.0,0.1492]
[1763582371803,0.0958,2882.1,2882.0,0.1492]
[1763582372112,0.78550524,2882.1,2882.0,0.1492]
[1763582372415,0.78550524,2882.1,2882.0,0.403]
[1763582372605,0.78550524,2882.2,2882.0,0.403]
[1763582372909,0.65874,2882.0,2881.9,0.00520933]
[1763582373108,1.44424524,2882.0,2881.9,0.00520933]
[1763582374605,1.34824524,2882.0,2881.9,0.25900933]
[1763582375705,0.00375131,2882.3,2881.9,0.25900933]
[1763582375706,0.00375131,2882.3,2882.2,0.2538]
[1763582375902,0.79141959,2882.3,2882.2,0.2538]
[1763582376710,0.79141959,2882.3,2882.0,0.1443]
[1763582376914,3.99546828,2882.2,2882.1,0.2538]
[1763582378509,3.99546828,2882.2,2882.0,0.1443]
[1763582378714,0.78766828,2882.1,2882.0,0.1443]
[1763582379011,0.78766828,2882.1,2882.0,0.3981]
[1763582380710,0.56644131,2882.3,2882.2,0.2538]
[1763582381115,1.35450364,2882.3,2882.2,0.2538]
[1763582381820,1.35450364,2882.3,2882.0,0.1443]
[1763582382119,3.99586233,2882.2,2882.0,0.1443]
[1763582382420,3.2078,2882.2,2882.0,0.1443]
[1763582382619,3.2078,2882.2,2882.1,0.2538]
[1763582382819,3.99576484,2882.2,2882.1,0.2538]
[1763582383618,3.99576484,2882.2,2882.0,0.1443]
[1763582383819,3.2078,2882.2,2882.0,0.1443]
[1763582385424,3.2078,2882.2,2882.1,0.2538]
[1763582385617,3.99590215,2882.2,2882.1,0.2538]
[1763582386520,3.2078,2882.2,2882.1,0.2538]
[1763582389918,0.00375131,2882.3,2882.1,0.2538]
[1763582390119,0.00375131,2882.3,2882.2,0.2538]
[1763582390322,0.79260491,2882.3,2882.2,0.2538]
[1763582391220,0.00375131,2882.3,2882.2,0.2538]
[1763582391727,0.7926681,2882.3,2882.2,0.2538]
[1763582392025,0.8886681,2882.3,2882.2,0.2538]
[1763582392220,0.8886681,2882.3,2882.0,0.1443]
[1763582392528,0.096,2882.1,2882.0,0.1443]
[1763582392828,3.2078,2882.2,2882.0,0.1443]
[1763582394931,3.2078,2882.2,2882.1,0.2538]
[1763582395130,3.99709665,2882.2,2882.1,0.2538]
[1763582395334,3.2078,2882.2,2882.1,0.2538]
[1763582395532,0.00375131,2882.3,2882.2,0.2538]
[1763582395731,0.00375131,2882.3,2882.0,0.1443]
[1763582395732,0.00520933,2882.4,2882.3,0.2538]
[1763582395937,9.33e-06,2882.4,2882.3,0.2538]
[1763582396126,3.2078,2882.8,2882.7,0.2538]
[1763582396325,3.99711148,2882.8,2882.7,0.2538]
[1763582396728,0.79214351,2882.8,2882.7,0.2576588]
[1763582398227,3.99994351,2882.8,2882.7,0.2576588]
[1763582399129,3.21963203,2882.8,2882.7,0.0038588]
[1763582399333,4.00843287,2882.8,2882.7,0.0038588]
[1763582399835,4.00843287,2882.8,2882.7,0.2576588]
[1763582400129,3.99943287,2882.8,2882.7,0.2576588]
[1763582400329,3.21063203,2882.8,2882.7,0.0038588]
[1763582400827,3.21963203,2882.8,2882.7,0.0038588]
[1763582401027,4.00825607,2882.8,2882.7,0.0038588]
[1763582401227,4.57083607,2882.8,2882.7,0.0038588]
[1763582401428,0.56263,2882.6,2882.0,0.1443]
[1763582401625,3.2078,2882.2,2882.0,0.1443]
[1763582401826,3.2078,2882.2,2882.1,0.2538]
[1763582402033,3.2192,2882.6,2882.5,0.1492]
[1763582402336,0.00283203,2882.8,2882.7,0.2468]
[1763582402840,0.00573594,2882.8,2882.7,0.2468]
[1763582403329,0.29391,2883.5,2883.4,0.2468]
[1763582403530,1.08819718,2883.5,2883.0,0.1492]
[1763582403736,3.2078,2883.4,2883.0,0.1492]
[1763582404134,0.29636062,2883.5,2883.0,0.1492]
[1763582404440,0.30156995,2883.5,2883.0,0.1492]
[1763582404740,3.2078,2883.4,2883.0,0.1492]
[1763582405134,3.2135,2883.1,2883.0,0.1492]
[1763582405336,3.77028,2883.4,2883.0,0.396]
[1763582405539,3.2078,2883.1,2883.0,0.396]
[1763582405843,3.2135,2883.4,2883.0,0.1492]
[1763582406329,3.2078,2883.4,2883.0,0.1492]
[1763582406537,0.30156995,2883.5,2883.4,0.2468]
[1763582406836,3.2078,2883.7,2883.4,0.2468]
[1763582407141,1.82856762,2884.4,2883.5,0.1492]
[1763582407142,3.2078,2884.0,2883.5,0.1492]
[1763582407336,3.2078,2884.0,2883.9,0.2468]
[1763582407741,3.2078,2884.0,2883.5,0.1492]
[1763582407938,3.2078,2883.9,2883.8,0.2468]
[1763582408337,3.2078,2883.9,2883.5,0.40120933]
[1763582409242,0.2535,2883.6,2883.5,0.15440933]
[1763582409432,3.4613,2883.6,2883.5,0.00520933]
[1763582410137,3.99428717,2883.6,2883.0,0.396]
[1763582410340,3.2078,2883.6,2883.5,0.396]
[1763582410944,3.4613,2883.6,2883.5,0.396]